fUSD/lending_fUSD_20260402
["ID","MTS","AMOUNT","RATE_DAILY","PERIOD"]
[419292322,1775118643403,-500.0,0.00015393,2]
[419292323,1775118643413,-151.0,0.00015393,2]
[419292324,1775118643422,-150.0,0.000154,2]
[419292325,1775118643432,-150.0,0.000154,2]
[419292326,1775118643442,-160.0,0.00015407,7]
[419292327,1775118643451,-336.651056,0.00015407,7]
[419292328,1775118643461,-513.302113,0.00015407,7]
[419292329,1775118643471,-390.38,0.00015412,2]
[419292330,1775118643480,-150.0,0.00015418,2]
[419292331,1775118643491,-221.0,0.00015429,2]
[419292332,1775118643500,-500.0,0.00015448,2]
[419292333,1775118643510,-151.0,0.00015448,2]
[419292334,1775118643519,-150.0,0.00015467,2]
[419292335,1775118643529,-150.0,0.00015467,2]
[419292336,1775118643538,-150.0,0.00015467,2]
[419292337,1775118643547,-350.0,0.00015503,2]
[419292338,1775118643557,-500.0,0.00015503,2]
[419292339,1775118643567,-151.0,0.00015503,2]
[419292340,1775118643576,-1600.0,0.00015531,2]
[419292341,1775118643586,-185.24,0.00015539,2]
[419292342,1775118643596,-150.0,0.00015543,2]
[419292343,1775118643606,-500.0,0.00015558,2]
[419292344,1775118643616,-151.0,0.00015558,2]
[419292345,1775118643626,-150.0,0.00015564,2]
[419292346,1775118643637,-162.0,0.00015572,2]
[419292348,1775118643647,-150.0,0.000156,2]
[419292349,1775118643656,-150.0,0.000156,2]
[419292350,1775118643666,-200.0,0.000156,2]
[419292351,1775118643675,-913.86,0.000156,2]
[419292352,1775118643685,-500.0,0.00015613,2]
[419292353,1775118643695,-151.0,0.00015613,2]
[419292354,1775118643704,-857.48483851,0.00015619,2]
[419292355,1775118643714,-161.0,0.00015642,2]
[419292356,1775118643724,-382.0,0.00015642,2]
[419292357,1775118643733,-500.0,0.00015668,2]
[419292358,1775118643743,-151.0,0.00015668,2]
[419292360,1775118643753,-1380.70129313,0.00015668,2]
[419292362,1775118643763,-150.0,0.0001568,2]
[419292364,1775118643773,-4566.0,0.00015694,2]
[419292365,1775118643783,-150.0,0.00015709,2]
[419292366,1775118643793,-1000.0,0.00015715,2]
[419292367,1775118643803,-643.44674977,0.00015721,2]
[419292368,1775118643813,-181.08010149,0.00015721,2]
[419292370,1775118643823,-204.7646566,0.00015721,2]
[419292372,1775118643832,-771.01748645,0.00015721,2]
[419292373,1775118643842,-500.0,0.00015723,2]
[419292375,1775118643852,-151.0,0.00015723,2]
[419292377,1775118643862,-150.0,0.00015733,2]
[419292378,1775118643872,-150.0,0.00015771,2]
[419292379,1775118643882,-4566.0,0.00015787,2]
[419292380,1775118643892,-150.0,0.000158,2]
[419292381,1775118643902,-150.0,0.000158,2]
[419292382,1775118643911,-500.0,0.00015802,2]
[419292383,1775118643921,-4566.0,0.0001583,2]
[419292384,1775118643931,-9221.26883546,0.0001584,2]
[419292385,1775118643942,-150.0,0.00015855,2]
[419292386,1775118643952,-2817.0,0.00015866,5]
[419292387,1775118643962,-785.32,0.00015874,2]
[419292388,1775118643972,-913.86,0.00015874,2]
[419292389,1775118643983,-4566.0,0.0001589,2]
[419292390,1775118643992,-500.0,0.0001589,2]
[419292391,1775118644002,-519.17533645,0.0001589,2]
[419292392,1775118644012,-500.0,0.00015899,2]
[419292393,1775118644022,-500.0,0.00015899,2]
[419292394,1775118644032,-500.0,0.00015899,2]
[419292395,1775118644042,-408.80395629,0.00015899,2]
[419292396,1775118644052,-3474.3649,0.000159,2]
[419292397,1775118644062,-9300.0,0.000159,5]
[419292398,1775118644071,-3558.38843003,0.000159,2]
[419292399,1775118644081,-350.0,0.00015931,2]
[419292400,1775118644091,-1571.0,0.00015941,2]
[419292401,1775118644100,-12004.96673852,0.00015956,2]
[419292402,1775118644110,-4020.34449656,0.00015956,2]
[419292403,1775118644120,-500.70581269,0.0001597,2]
[419292404,1775118644129,-700.0,0.0001597,2]
[419292405,1775118644139,-700.0,0.0001597,2]
[419292406,1775118644148,-1230.89693021,0.0001597,2]
[419292407,1775118644158,-324.0,0.00015973,2]
[419292408,1775118644167,-500.40097666,0.00015973,2]
[419292409,1775118644176,-500.0,0.00015973,2]
[419292410,1775118644186,-161.84197256,0.00015973,2]
[419292411,1775118644195,-502.22201414,0.00015973,2]
[419292412,1775118644205,-501.32196063,0.00015973,2]
[419292413,1775118644215,-359.66331739,0.00015973,2]
[419292414,1775118644225,-500.0,0.00015973,2]
[419292415,1775118644235,-500.0,0.00015973,2]
[419292416,1775118644244,-500.0,0.00015973,2]
[419292417,1775118644253,-500.0,0.00015973,2]
[419292418,1775118644262,-501.17803904,0.00015973,2]
[419292419,1775118644271,-500.0,0.00015973,2]
[419292420,1775118644280,-384.73655496,0.00015973,2]
[419292421,1775118644290,-501.1834914,0.00015973,2]
[419292422,1775118644299,-500.48771159,0.00015973,2]
[419292423,1775118644308,-500.62845859,0.00015973,2]
[419292424,1775118644318,-500.0,0.00015973,2]
[419292425,1775118644327,-500.0,0.00015973,2]
[419292426,1775118644336,-500.0,0.00015973,2]
[419292427,1775118644345,-304.17782352,0.00015973,2]
[419292428,1775118644355,-501.36546682,0.00015973,2]
[419292429,1775118644364,-500.0,0.00015973,2]
[419292430,1775118644374,-164.72699301,0.00015973,2]
[419292431,1775118644386,-474.26742554,0.00015973,2]
[419292432,1775118644397,-159.74316253,0.00015973,2]
[419292433,1775118644408,-500.0,0.00015973,2]
[419292434,1775118644419,-500.0,0.00015973,2]
[419292435,1775118644429,-500.0,0.00015973,2]
[419292436,1775118644440,-171.26,0.0001598,2]
[419292437,1775118644451,-211.4,0.0001599,2]
[419292438,1775118644461,-211.4,0.0001599,2]
[419292439,1775118644471,-211.4,0.0001599,2]
[419292440,1775118644481,-588.43649444,0.0001599,2]
[419292441,1775118644490,-568.12,0.0001599,2]
[419292442,1775118644499,-4566.0,0.00015993,2]
[419292443,1775118644509,-151.0,0.00015997,2]
[419292444,1775118644517,-682.98280845,0.00015999,2]
[419292445,1775118644528,-666.0,0.00015999,2]
[419292446,1775118644539,-150.73916309,0.00015999,2]
[419292447,1775118644550,-163.10364202,0.00015999,2]
[419292448,1775118644560,-500.0,0.00015999,2]
[419292449,1775118644569,-500.0,0.00015999,2]
[419292450,1775118644578,-500.0,0.00015999,2]
[419292451,1775118644587,-500.0,0.00015999,2]
[419292452,1775118644597,-271.33049356,0.00015999,2]
[419292453,1775118644606,-500.0,0.00015999,2]
[419292454,1775118644615,-500.0,0.00015999,2]
[419292455,1775118644625,-500.0,0.00015999,2]
[419292456,1775118644634,-230.75097167,0.00015999,2]
[419292457,1775118644643,-568.12,0.00015999,2]
[419292458,1775118644653,-500.0,0.00015999,2]
[419292459,1775118644662,-500.0,0.00015999,2]
[419292460,1775118644671,-500.0,0.00015999,2]
[419292461,1775118644680,-500.0,0.00015999,2]
[419292462,1775118644689,-500.0,0.00015999,2]
[419292463,1775118644699,-500.0,0.00015999,2]
[419292464,1775118644709,-500.0,0.00015999,2]
[419292465,1775118644718,-500.0,0.00015999,2]
[419292466,1775118644729,-500.0,0.00015999,2]
[419292467,1775118644738,-186.38280223,0.00015999,2]
[419292468,1775118644748,-581.88386575,0.00015999,2]
[419292469,1775118644757,-500.0,0.00015999,2]
[419292470,1775118644768,-500.0,0.00015999,2]
[419292471,1775118644778,-500.0,0.00015999,2]
[419292472,1775118644788,-500.0,0.00015999,2]
[419292473,1775118644798,-500.0,0.00015999,2]
[419292474,1775118644809,-500.0,0.00015999,2]
[419292475,1775118644818,-500.0,0.00015999,2]
[419292476,1775118644828,-500.0,0.00015999,2]
[419292477,1775118644837,-500.0,0.00015999,2]
[419292478,1775118644847,-500.0,0.00015999,2]
[419292479,1775118644857,-500.0,0.00015999,2]
[419292480,1775118644868,-500.0,0.00015999,2]
[419292481,1775118644878,-500.0,0.00015999,2]
[419292482,1775118644888,-500.0,0.00015999,2]
[419292483,1775118644898,-500.0,0.00015999,2]
[419292484,1775118644908,-295.93056415,0.00016,2]
[419292485,1775118644918,-262.99914754,0.00016,2]
[419292486,1775118644928,-257.16410363,0.00016,2]
[419292487,1775118644938,-227.14088403,0.00016,2]
[419292488,1775118644947,-151.3525135,0.00016,2]
[419292489,1775118644956,-224.36035095,0.00016,2]
[419292490,1775118644965,-255.066961,0.00016,2]
[419292491,1775118644975,-151.29617421,0.00016,2]
[419292492,1775118644983,-153.81830373,0.00016,2]
[419292493,1775118644993,-19855.73244547,0.00016,2]
[419292494,1775118645002,-478417.36965744,0.00016,2]
[419292495,1775118645949,-114157.7762568,0.00016,2]
[419292503,1775118647001,-2194.05678068,0.00016,2]
[419292504,1775118647026,-2112.68772881,0.00016,2]
[419292505,1775118647038,-1191.98480469,0.00016,2]
[419292506,1775118647047,-152.0,0.00016,2]
[419292507,1775118647056,-1000.0,0.00016,2]
[419292508,1775118647066,-670.609,0.00016,2]
[419292509,1775118647076,-3461.45053154,0.00016,2]
[419292510,1775118647097,-5642.70196642,0.00016,2]
[419292511,1775118647108,-2011.69999999,0.00016,2]
[419292512,1775118648213,-35068.7024931,0.00016,2]
[419292513,1775118648245,-444.58999998,0.00016,2]
[419292514,1775118648348,-1165.00275632,0.00016,2]
[419292581,1775119832764,-514.85,0.00011507,2]
[419292582,1775119832774,-95.0484744,0.00013414,2]
[419292583,1775119832794,-212.7115256,0.00013414,2]
[419292584,1775119832804,-297.55,0.00013414,2]
[419292585,1775119832813,-150.0,0.00013818,2]
[419292586,1775119832823,-89.7384744,0.00014022,2]
[419292587,1775119832838,-242.64753855,0.00014022,2]
[419292588,1775119832848,-150.0,0.00014092,2]
[419292589,1775119832857,-2503.69,0.00014144,2]
[419292590,1775119832868,-300.0,0.00014214,2]
[419292591,1775119832878,-1200.0,0.00014214,2]
[419292592,1775119832888,-2464.82200649,0.00014215,2]
[419292593,1775119832900,-621.94024213,0.00014215,2]
[419292594,1775119832942,-970.31793558,0.00014215,2]
[419292595,1775119832953,-250.7070206,0.00014215,2]
[419292596,1775119833236,-4652.62,0.00014215,2]
[419292598,1775119838356,-531.07935974,0.00014215,2]
[419292599,1775119838410,-355.710055,0.00014215,2]
[419292607,1775119840599,-8102.96338046,0.00014215,2]
[419292608,1775119840609,-166.66,0.00014215,2]
[419292609,1775119840619,-250.707,0.00014272,2]
[419292610,1775119840629,-359.88390695,0.00014329,2]
[419292611,1775119840640,-150.0,0.00014372,2]
[419292612,1775119840649,-150.38719726,0.00014372,2]
[419292613,1775119840659,-200.0,0.00014485,2]
[419292614,1775119840668,-500.0,0.00014485,2]
[419292615,1775119840678,-285.95309516,0.00014495,2]
[419292616,1775119840687,-150.0,0.00014503,2]
[419292617,1775119840696,-500.0,0.00014504,2]
[419292618,1775119840705,-500.0,0.00014504,2]
[419292619,1775119840715,-500.0,0.00014504,2]
[419292620,1775119840724,-500.0,0.00014504,2]
[419292621,1775119840733,-500.0,0.00014504,2]
[419292622,1775119840742,-500.0,0.00014504,2]
[419292623,1775119840752,-500.0,0.00014504,2]
[419292624,1775119840761,-500.0,0.00014504,2]
[419292625,1775119840770,-500.0,0.00014504,2]
[419292626,1775119840780,-500.0,0.00014504,2]
[419292627,1775119840790,-500.0,0.00014504,2]
[419292628,1775119840799,-500.0,0.00014504,2]
[419292629,1775119840810,-159.96636092,0.00014504,2]
[419292630,1775119840819,-500.0,0.00014504,2]
[419292631,1775119840829,-500.0,0.00014504,2]
[419292632,1775119840838,-500.0,0.00014504,2]
[419292633,1775119840848,-325.34166394,0.00014504,2]
[419292634,1775119840858,-500.0,0.00014504,2]
[419292635,1775119840868,-500.0,0.00014504,2]
[419292636,1775119840877,-500.0,0.00014504,2]
[419292637,1775119840887,-500.0,0.00014504,2]
[419292638,1775119840897,-500.0,0.00014504,2]
[419292639,1775119840908,-500.0,0.00014504,2]
[419292640,1775119840919,-581.88386575,0.00014504,2]
[419292641,1775119840928,-500.0,0.00014504,2]
[419292642,1775119840939,-500.0,0.00014504,2]
[419292643,1775119840948,-500.0,0.00014504,2]
[419292644,1775119840959,-500.0,0.00014504,2]
[419292645,1775119840969,-500.0,0.00014504,2]
[419292646,1775119840979,-500.0,0.00014504,2]
[419292647,1775119840988,-588.43649444,0.00014504,2]
[419292648,1775119841000,-1110.63,0.00014504,2]
[419292649,1775119841009,-502.30741604,0.00014504,2]
[419292650,1775119841019,-500.0,0.00014504,2]
[419292651,1775119841029,-500.0,0.00014504,2]
[419292652,1775119841039,-500.0,0.00014504,2]
[419292653,1775119841051,-500.0,0.00014504,2]
[419292654,1775119841061,-510.83599728,0.00014504,2]
[419292655,1775119841072,-500.0,0.00014504,2]
[419292656,1775119841083,-500.0,0.00014504,2]
[419292657,1775119841093,-500.0,0.00014504,2]
[419292659,1775119841103,-500.0,0.00014504,2]
[419292660,1775119841113,-500.0,0.00014504,2]
[419292661,1775119841124,-500.0,0.00014504,2]
[419292662,1775119841133,-500.0,0.00014504,2]
[419292663,1775119841143,-408.80395629,0.00014504,2]
[419292664,1775119841153,-500.0,0.00014504,2]
[419292665,1775119841163,-200.0,0.00014504,2]
[419292666,1775119841173,-166.66,0.00014515,2]
[419292667,1775119841183,-1519.14,0.00014595,2]
[419292668,1775119841193,-1110.63,0.00014778,2]
[419292670,1775119841203,-500.0,0.00014778,2]
[419292671,1775119841212,-150.0,0.000148,2]
[419292672,1775119841222,-166.66,0.00014814,2]
[419292673,1775119841232,-2503.69,0.00014851,2]
[419292674,1775119841242,-903.14,0.00014931,2]
[419292675,1775119841251,-597.15847285,0.00014962,2]
[419292676,1775119841261,-180.990237,0.00015016,7]
[419292677,1775119841270,-446.493004,0.00015016,7]
[419292678,1775119841280,-200.498122,0.00015016,7]
[419292679,1775119841289,-160.0,0.00015016,7]
[419292680,1775119841298,-163.648276,0.00015016,7]
[419292681,1775119841308,-167.296552,0.00015016,7]
[419292682,1775119841317,-500.0,0.00015028,2]
[419292683,1775119841327,-500.0,0.00015028,2]
[419292684,1775119841336,-500.0,0.00015032,2]
[419292685,1775119841346,-500.0,0.00015032,2]
[419292686,1775119841356,-1500.0,0.00015037,2]
[419292687,1775119841366,-150.0,0.00015051,2]
[419292688,1775119841376,-1110.63,0.00015052,2]
[419292689,1775119841385,-500.0,0.00015052,2]
[419292690,1775119841394,-160.0,0.00015059,7]
[419292691,1775119841404,-180.767427,0.00015059,7]
[419292692,1775119841414,-201.534855,0.00015059,7]
[419292693,1775119841423,-166.66,0.00015113,2]
[419292694,1775119841432,-500.0,0.00015115,2]
[419292695,1775119841442,-500.0,0.00015115,2]
[419292696,1775119841453,-164.35655208,0.00015115,2]
[419292697,1775119841464,-150.0,0.00015115,2]
[419292698,1775119841474,-150.0,0.00015115,2]
[419292699,1775119841483,-150.0,0.00015115,2]
[419292700,1775119841493,-150.0,0.00015115,2]
[419292701,1775119841503,-150.0,0.00015115,2]
[419292702,1775119841513,-150.0,0.00015115,2]
[419292703,1775119841524,-150.0,0.00015115,2]
[419292704,1775119841534,-150.0,0.00015134,2]
[419292705,1775119841544,-150.0,0.00015134,2]
[419292706,1775119841555,-150.0,0.00015135,2]
[419292707,1775119841565,-150.0,0.00015146,2]
[419292708,1775119841575,-150.0,0.00015153,2]
[419292709,1775119841586,-382.0,0.00015153,2]
[419292710,1775119841596,-150.0,0.00015154,2]
[419292711,1775119841609,-150.0,0.00015155,2]
[419292712,1775119841619,-150.0,0.00015163,2]
[419292713,1775119841631,-150.0,0.00015172,2]
[419292714,1775119841641,-500.0,0.00015172,2]
[419292715,1775119841651,-500.0,0.00015172,2]
[419292716,1775119841661,-500.0,0.00015172,2]
[419292717,1775119841670,-500.0,0.00015172,2]
[419292718,1775119841680,-500.0,0.00015172,2]
[419292719,1775119841690,-150.0,0.00015173,2]
[419292720,1775119841703,-150.0,0.00015175,2]
[419292721,1775119841715,-150.0,0.00015176,2]
[419292722,1775119841725,-150.0,0.00015191,2]
[419292723,1775119841735,-150.0,0.00015192,2]
[419292724,1775119841744,-150.0,0.00015195,2]
[419292725,1775119841754,-500.0,0.00015199,2]
[419292726,1775119841764,-1428.38747117,0.00015199,2]
[419292727,1775119841774,-500.0,0.00015199,2]
[419292728,1775119841783,-200.0,0.00015199,2]
[419292729,1775119841793,-500.0,0.00015199,2]
[419292730,1775119841803,-500.0,0.00015199,2]
[419292731,1775119841813,-500.0,0.00015199,2]
[419292732,1775119841823,-158.56026764,0.00015199,2]
[419292733,1775119841833,-326.59559359,0.00015199,2]
[419292734,1775119841843,-500.0,0.00015199,2]
[419292735,1775119841853,-500.0,0.00015199,2]
[419292736,1775119841863,-500.0,0.00015199,2]
[419292737,1775119841873,-500.0,0.00015199,2]
[419292738,1775119841882,-9552.16786547,0.00015199,2]
[419292739,1775119841892,-500.0,0.00015199,2]
[419292740,1775119841902,-500.0,0.00015199,2]
[419292741,1775119841912,-500.0,0.00015199,2]
[419292742,1775119841923,-429.60065942,0.00015199,2]
[419292743,1775119841933,-500.0,0.00015199,2]
[419292744,1775119841942,-500.0,0.00015199,2]
[419292745,1775119841956,-500.0,0.00015199,2]
[419292746,1775119841966,-151.0,0.00015199,2]
[419292747,1775119841976,-500.0,0.00015199,2]
[419292748,1775119841986,-500.0,0.00015199,2]
[419292749,1775119841997,-500.0,0.00015199,2]
[419292750,1775119842008,-250.0,0.00015199,2]
[419292751,1775119842018,-500.0,0.00015199,2]
[419292752,1775119842030,-250.0,0.00015199,2]
[419292753,1775119842040,-500.0,0.00015199,2]
[419292754,1775119842051,-174.61919141,0.00015199,2]
[419292755,1775119842061,-250.0,0.00015199,2]
[419292756,1775119842071,-500.0,0.00015199,2]
[419292757,1775119842081,-250.0,0.00015199,2]
[419292758,1775119842091,-500.0,0.00015199,2]
[419292759,1775119842100,-250.0,0.00015199,2]
[419292760,1775119842110,-500.0,0.00015199,2]
[419292761,1775119842119,-200.0,0.00015199,2]
[419292762,1775119842130,-250.0,0.00015199,2]
[419292763,1775119842139,-500.0,0.00015199,2]
[419292764,1775119842149,-250.0,0.00015199,2]
[419292765,1775119842158,-500.0,0.00015199,2]
[419292766,1775119842168,-500.0,0.00015199,2]
[419292767,1775119842178,-250.0,0.00015199,2]
[419292768,1775119842188,-250.0,0.00015199,2]
[419292769,1775119842198,-250.0,0.00015199,2]
[419292770,1775119842208,-250.0,0.00015199,2]
[419292771,1775119842217,-743.50770149,0.00015199,2]
[419292772,1775119842227,-802.22446877,0.00015199,2]
[419292773,1775119842237,-170.0,0.00015199,2]
[419292774,1775119842246,-170.0,0.00015199,2]
[419292775,1775119842256,-170.0,0.00015199,2]
[419292776,1775119842266,-170.0,0.00015199,2]
[419292777,1775119842275,-170.0,0.00015199,2]
[419292778,1775119842285,-170.0,0.00015199,2]
[419292779,1775119842294,-170.0,0.00015199,2]
[419292780,1775119842304,-170.0,0.00015199,2]
[419292781,1775119842316,-279.9045709,0.00015199,2]
[419292782,1775119842328,-170.0,0.00015199,2]
[419292783,1775119842340,-170.0,0.00015199,2]
[419292784,1775119842351,-170.0,0.00015199,2]
[419292785,1775119842361,-150.0,0.00015207,2]
[419292786,1775119842371,-150.0,0.00015209,2]
[419292787,1775119842381,-150.0,0.00015211,2]
[419292788,1775119842391,-150.0,0.00015212,2]
[419292789,1775119842400,-150.0,0.00015215,2]
[419292790,1775119842410,-150.0,0.00015228,2]
[419292791,1775119842421,-150.0,0.00015231,2]
[419292792,1775119842431,-150.0,0.00015235,2]
[419292793,1775119842441,-150.0,0.00015237,2]
[419292794,1775119842451,-150.0,0.00015247,2]
[419292795,1775119842460,-150.0,0.0001525,2]
[419292796,1775119842470,-500.0,0.00015254,2]
[419292797,1775119842480,-9932.87045788,0.00015254,2]
[419292798,1775119842490,-151.0,0.00015254,2]
[419292799,1775119842499,-150.0,0.00015255,2]
[419292800,1775119842509,-150.0,0.00015259,2]
[419292801,1775119842519,-150.0,0.00015266,2]
[419292802,1775119842528,-150.0,0.00015268,2]
[419292803,1775119842539,-150.0,0.0001527,2]
[419292804,1775119842549,-150.0,0.00015275,2]
[419292805,1775119842558,-150.0,0.00015285,2]
[419292806,1775119842568,-150.0,0.00015289,2]
[419292807,1775119842578,-150.0,0.00015295,2]
[419292808,1775119842588,-150.0,0.00015298,2]
[419292809,1775119842598,-150.0,0.00015302,2]
[419292810,1775119842607,-150.0,0.00015304,2]
[419292811,1775119842617,-150.0,0.00015307,2]
[419292812,1775119842627,-150.0,0.00015308,2]
[419292813,1775119842637,-500.0,0.00015309,2]
[419292814,1775119842646,-151.0,0.00015309,2]
[419292815,1775119842655,-150.0,0.00015315,2]
[419292816,1775119842665,-2809.0,0.00015322,2]
[419292817,1775119842675,-150.0,0.00015323,2]
[419292818,1775119842685,-1110.63,0.00015326,2]
[419292819,1775119842695,-500.0,0.00015326,2]
[419292820,1775119842704,-150.0,0.00015327,2]
[419292821,1775119842714,-150.0,0.00015329,2]
[419292822,1775119842724,-150.0,0.00015335,2]
[419292823,1775119842734,-150.0,0.00015342,2]
[419292824,1775119842744,-150.0,0.00015347,2]
[419292825,1775119842754,-150.0,0.00015355,2]
[419292826,1775119842764,-150.0,0.00015355,2]
[419292827,1775119842774,-150.0,0.00015359,2]
[419292828,1775119842784,-150.0,0.0001536,2]
[419292829,1775119842793,-500.0,0.00015364,2]
[419292830,1775119842803,-151.0,0.00015364,2]
[419292832,1775119843191,-150.0,0.00015366,2]
[419292833,1775119843273,-350.0,0.00015371,2]
[419292834,1775119843283,-150.0,0.00015375,2]
[419292835,1775119843293,-150.0,0.00015379,2]
[419292836,1775119843303,-150.0,0.00015385,2]
[419292837,1775119843312,-150.0,0.0001539,2]
[419292838,1775119843322,-150.0,0.00015395,2]
[419292839,1775119843332,-150.0,0.00015398,2]
[419292840,1775119843342,-150.0,0.00015403,2]
[419292841,1775119843352,-150.0,0.00015405,2]
[419292842,1775119843362,-211.4,0.00015412,2]
[419292843,1775119843372,-211.4,0.00015412,2]
[419292844,1775119843382,-211.4,0.00015412,2]
[419292845,1775119843392,-166.66,0.00015412,2]
[419292846,1775119843402,-150.0,0.00015415,2]
[419292847,1775119843412,-150.0,0.00015417,2]
[419292848,1775119843422,-500.0,0.00015419,2]
[419292849,1775119843432,-151.0,0.00015419,2]
[419292850,1775119843443,-150.0,0.0001542,2]
[419292851,1775119843453,-2068.0,0.00015423,2]
[419292852,1775119843463,-150.0,0.00015424,2]
[419292853,1775119843472,-150.0,0.00015435,2]
[419292854,1775119843482,-150.0,0.00015436,2]
[419292855,1775119843492,-150.0,0.00015443,2]
[419292856,1775119843502,-150.0,0.00015451,2]
[419292857,1775119843512,-150.0,0.00015451,2]
[419292858,1775119843521,-150.0,0.00015455,2]
[419292859,1775119843531,-150.0,0.00015455,2]
[419292860,1775119843541,-150.0,0.00015463,2]
[419292861,1775119843551,-150.0,0.00015474,2]
[419292862,1775119843560,-500.0,0.00015474,2]
[419292863,1775119843570,-151.0,0.00015474,2]
[419292864,1775119843579,-150.0,0.00015475,2]
[419292865,1775119843589,-150.0,0.00015481,2]
[419292866,1775119843599,-150.0,0.00015482,2]
[419292867,1775119843608,-150.0,0.00015488,2]
[419292868,1775119843620,-297.55,0.00015492,2]
[419292869,1775119843630,-150.0,0.00015492,2]
[419292870,1775119843640,-307.76,0.00015493,2]
[419292871,1775119843649,-150.0,0.00015495,2]
[419292872,1775119843659,-150.0,0.00015499,2]
[419292873,1775119843668,-150.0,0.00015501,2]
[419292874,1775119843678,-2606.93,0.00015507,2]
[419292875,1775119843688,-350.0,0.00015511,2]
[419292876,1775119843697,-150.0,0.00015511,2]
[419292877,1775119843707,-150.0,0.00015512,2]
[419292878,1775119843717,-150.0,0.00015515,2]
[419292879,1775119843726,-150.0,0.0001552,2]
[419292880,1775119843736,-500.0,0.00015529,2]
[419292881,1775119843746,-151.0,0.00015529,2]
[419292882,1775119843756,-150.0,0.0001553,2]
[419292883,1775119843766,-150.0,0.00015535,2]
[419292884,1775119843776,-11535.19337466,0.00015536,2]
[419292885,1775119843786,-150.0,0.0001554,2]
[419292886,1775119843796,-150.0,0.00015543,2]
[419292887,1775119843807,-150.0,0.00015547,2]
[419292889,1775119843817,-150.0,0.00015549,2]
[419292890,1775119843827,-150.0,0.00015555,2]
[419292891,1775119843837,-2503.69,0.00015558,2]
[419292892,1775119843847,-150.0,0.00015559,2]
[419292893,1775119843857,-150.0,0.00015568,2]
[419292894,1775119843867,-420.0,0.00015569,2]
[419292895,1775119843877,-150.0,0.00015573,2]
[419292896,1775119843886,-150.0,0.00015575,2]
[419292897,1775119843897,-501.67855026,0.00015576,2]
[419292898,1775119843907,-1000.0,0.00015576,2]
[419292899,1775119843918,-150.0,0.00015578,2]
[419292900,1775119843929,-500.0,0.00015584,2]
[419292901,1775119843939,-151.0,0.00015584,2]
[419292902,1775119843949,-150.0,0.00015587,2]
[419292903,1775119843959,-150.0,0.00015595,2]
[419292904,1775119843969,-150.0,0.00015595,2]
[419292906,1775119843979,-150.0,0.00015598,2]
[419292907,1775119843988,-1110.63,0.000156,2]
[419292908,1775119843998,-337.97256879,0.000156,2]
[419292909,1775119844008,-2000.0,0.000156,2]
[419292910,1775119844018,-150.0,0.00015604,2]
[419292912,1775119844028,-150.0,0.00015606,2]
[419292913,1775119844037,-2000.0,0.00015607,2]
[419292914,1775119844047,-2000.0,0.00015607,2]
[419292915,1775119844056,-2000.0,0.00015607,2]
[419292916,1775119844066,-2000.0,0.00015607,2]